[Event "Live Chess"]
[Site "Chess.com"]
[Date "2021.05.21"]
[Round "2"]
[White "kevin_mx_sun"]
[Black "vincitore51745"]
[Result "1-0"]
[CurrentPosition "5Rrk/1p5p/p3p3/2p1Q3/P7/3P4/1PP2K1P/R7 b - -"]
[Timezone "UTC"]
[ECO "B23"]
[ECOUrl "https://www.chess.com/openings/Sicilian-Defense-Grand-Prix-Attack-3...e6"]
[UTCDate "2021.05.21"]
[UTCTime "01:31:32"]
[WhiteElo "1491"]
[BlackElo "581"]
[TimeControl "3600+5"]
[Termination "kevin_mx_sun won by checkmate"]
[StartTime "01:31:32"]
[EndDate "2021.05.21"]
[EndTime "02:06:19"]
[Link "https://www.chess.com/game/live/15299574923"]

1. e4 {[%clk 1:00:05]} 1... c5 {[%clk 0:59:12.8]} 2. Nc3 {[%clk 1:00:05.6]} 2... e6 {[%clk 0:59:09.3]} 3. f4 {[%clk 1:00:05.6]} 3... Nc6 {[%clk 0:59:03.3]} 4. Nf3 {[%clk 1:00:06.6]} 4... d6 {[%clk 0:58:26.7]} 5. Bb5 {[%clk 1:00:01.6]} 5... Bd7 {[%clk 0:58:15.9]} 6. O-O {[%clk 0:59:51.7]} 6... a6 {[%clk 0:58:17]} 7. Bxc6 {[%clk 0:59:45.1]} 7... Bxc6 {[%clk 0:58:17.7]} 8. d3 {[%clk 0:59:41.1]} 8... Nf6 {[%clk 0:58:01.7]} 9. a4 {[%clk 0:59:12.1]} 9... Be7 {[%clk 0:57:37.2]} 10. Qe1 {[%clk 0:58:57]} 10... O-O {[%clk 0:57:22.1]} 11. e5 {[%clk 0:58:14.5]} 11... dxe5 {[%clk 0:55:17.2]} 12. Nxe5 {[%clk 0:58:11.7]} 12... Qc7 {[%clk 0:50:12.4]} 13. Nxc6 {[%clk 0:57:03.2]} 13... Qxc6 {[%clk 0:50:12.7]} 14. f5 {[%clk 0:56:39.5]} 14... Rfe8 {[%clk 0:47:26]} 15. fxe6 {[%clk 0:56:01]} 15... fxe6 {[%clk 0:47:22.7]} 16. Qg3 {[%clk 0:55:02.9]} 16... Nh5 {[%clk 0:46:27.5]} 17. Qh3 {[%clk 0:54:31.3]} 17... g6 {[%clk 0:45:21.1]} 18. Re1 {[%clk 0:53:37.5]} 18... Nf4 {[%clk 0:44:34]} 19. Bxf4 {[%clk 0:53:35.4]} 19... Bf6 {[%clk 0:42:46.1]} 20. Be5 {[%clk 0:52:26.8]} 20... Rf8 {[%clk 0:41:49]} 21. Bxf6 {[%clk 0:52:20.3]} 21... Rxf6 {[%clk 0:41:47.1]} 22. Ne4 {[%clk 0:52:21.9]} 22... Rf5 {[%clk 0:40:45.4]} 23. Rf1 {[%clk 0:51:53.9]} 23... Rh5 {[%clk 0:40:39.3]} 24. Nf6+ {[%clk 0:51:53.3]} 24... Kg7 {[%clk 0:40:16.6]} 25. Nxh5+ {[%clk 0:51:54.8]} 25... gxh5 {[%clk 0:40:15.2]} 26. Qxh5 {[%clk 0:51:57.9]} 26... Kh8 {[%clk 0:40:06.6]} 27. Rf7 {[%clk 0:51:48.9]} 27... Qxg2+ {[%clk 0:38:46.8]} 28. Kxg2 {[%clk 0:51:49.6]} 28... Rg8+ {[%clk 0:38:48.9]} 29. Kf2 {[%clk 0:51:51.6]} 29... Rg7 {[%clk 0:38:38.8]} 30. Rf8+ {[%clk 0:51:53.1]} 30... Rg8 {[%clk 0:38:37.8]} 31. Qe5# {[%clk 0:51:55.9]} 1-0

[Event "Live Chess"]
[Site "Chess.com"]
[Date "2021.05.21"]
[Round "2"]
[White "andrejsg"]
[Black "Loltheawesomedude"]
[Result "0-1"]
[CurrentPosition "2r3k1/p4pp1/1p1p3p/3Bp3/PP2P3/3P1n1q/3Q1P2/2R3K1 w - -"]
[Timezone "UTC"]
[ECO "B23"]
[ECOUrl "https://www.chess.com/openings/Sicilian-Defense-Closed-Traditional-Line-3.Nf3"]
[UTCDate "2021.05.21"]
[UTCTime "01:31:47"]
[WhiteElo "826"]
[BlackElo "1487"]
[TimeControl "3600+5"]
[Termination "Loltheawesomedude won by checkmate"]
[StartTime "01:31:47"]
[EndDate "2021.05.21"]
[EndTime "02:27:36"]
[Link "https://www.chess.com/game/live/15299575139"]

1. e4 {[%clk 0:59:49]} 1... c5 {[%clk 1:00:02.1]} 2. Nf3 {[%clk 0:59:40.4]} 2... Nc6 {[%clk 0:59:22.5]} 3. Nc3 {[%clk 0:59:19.5]} 3... e5 {[%clk 0:58:05.6]} 4. Bc4 {[%clk 0:58:31.5]} 4... h6 {[%clk 0:57:18]} 5. d3 {[%clk 0:57:19.3]} 5... Nf6 {[%clk 0:57:08.2]} 6. O-O {[%clk 0:56:40.4]} 6... Be7 {[%clk 0:55:31.7]} 7. b3 {[%clk 0:55:31.6]} 7... O-O {[%clk 0:55:14.7]} 8. a4 {[%clk 0:54:01.4]} 8... d6 {[%clk 0:54:34.5]} 9. Bb2 {[%clk 0:53:36]} 9... Bg4 {[%clk 0:54:01.6]} 10. h3 {[%clk 0:51:07.2]} 10... Bh5 {[%clk 0:53:40.1]} 11. Nd5 {[%clk 0:48:46.6]} 11... Nxd5 {[%clk 0:49:54.9]} 12. Bxd5 {[%clk 0:48:32.4]} 12... Rc8 {[%clk 0:48:35.4]} 13. Qd2 {[%clk 0:47:39.5]} 13... Bxf3 {[%clk 0:47:44.4]} 14. gxf3 {[%clk 0:45:59.9]} 14... Bg5 {[%clk 0:46:58.8]} 15. Qe2 {[%clk 0:44:21.6]} 15... Bf4 {[%clk 0:46:29.7]} 16. Bc1 {[%clk 0:42:22.8]} 16... Nd4 {[%clk 0:45:47.1]} 17. Qd1 {[%clk 0:40:35.8]} 17... Bxc1 {[%clk 0:45:38.3]} 18. Rxc1 {[%clk 0:40:07.9]} 18... Qf6 {[%clk 0:45:11.2]} 19. Kg2 {[%clk 0:38:32.8]} 19... b6 {[%clk 0:42:28.9]} 20. c3 {[%clk 0:37:25]} 20... Nc6 {[%clk 0:41:40.5]} 21. b4 {[%clk 0:36:40.1]} 21... cxb4 {[%clk 0:41:00.2]} 22. cxb4 {[%clk 0:36:22.9]} 22... Nd4 {[%clk 0:39:11.3]} 23. Rxc8 {[%clk 0:36:12.8]} 23... Rxc8 {[%clk 0:38:55.1]} 24. Qd2 {[%clk 0:33:47.6]} 24... Qxf3+ {[%clk 0:38:48]} 25. Kg1 {[%clk 0:33:21.1]} 25... Qxh3 {[%clk 0:38:09.8]} 26. Rc1 {[%clk 0:31:23.1]} 26... Nf3# {[%clk 0:37:21.1]} 0-1